bitfinex/quotes_BTCUSD_20250616
["timestamp","ask_amount","ask_price","bid_price","bid_amount"]
[1750066205214,2.28384314,107150.0,107140.0,1.66384206]
[1750066205470,2.28384314,107150.0,107140.0,1.64632431]
[1750066205700,2.20282993,107150.0,107140.0,1.66384206]
[1750066205907,2.20938355,107150.0,107140.0,1.66384166]
[1750066206105,2.17838355,107150.0,107140.0,1.66384148]
[1750066206337,2.17838359,107150.0,107140.0,1.66384148]
[1750066206545,2.17838359,107150.0,107140.0,1.64632431]
[1750066206679,2.14152993,107150.0,107140.0,1.64632431]
[1750066206884,2.14808359,107150.0,107140.0,1.66384147]
[1750066207087,1.56393512,107150.0,107140.0,1.72534148]
[1750066207290,1.27331497,107150.0,107140.0,1.72534046]
[1750066207505,1.80948367,107150.0,107140.0,1.72535112]
[1750066207856,1.74699172,107150.0,107140.0,1.72535083]
[1750066208095,1.75355021,107150.0,107140.0,1.72535082]
[1750066208346,1.74699172,107150.0,107140.0,1.72535078]
[1750066208807,1.78150025,107150.0,107140.0,1.72535078]
[1750066209021,1.77494175,107150.0,107140.0,1.72535078]
[1750066209239,1.78150024,107150.0,107140.0,1.70782431]
[1750066209454,1.77494175,107150.0,107140.0,1.70782431]
[1750066209669,1.78150025,107150.0,107140.0,1.72535078]
[1750066209899,1.77494175,107150.0,107140.0,1.72535082]
[1750066210143,1.78150024,107150.0,107140.0,1.72535083]
[1750066210364,1.77494175,107150.0,107140.0,1.72535083]
[1750066210580,1.77494175,107150.0,107140.0,1.72535079]
[1750066210832,1.78150024,107150.0,107140.0,1.70782431]
[1750066211045,1.78150025,107150.0,107140.0,1.70782431]
[1750066211260,1.77494175,107150.0,107140.0,1.7253508]
[1750066211492,1.77494175,107150.0,107140.0,1.70782431]
[1750066211951,1.73761148,107150.0,107140.0,1.70782431]
[1750066212426,1.73761148,107150.0,107140.0,1.72535024]
[1750066212882,1.53139063,107150.0,107140.0,1.70782431]
[1750066213103,1.13896215,107150.0,107140.0,1.70782431]
[1750066213323,1.6951206,107150.0,107140.0,1.72534989]
[1750066213574,1.6951206,107150.0,107140.0,1.72534959]
[1750066214032,1.6921206,107150.0,107140.0,1.72534961]
[1750066214250,1.6921206,107150.0,107140.0,1.70782431]
[1750066214475,1.6891206,107150.0,107140.0,1.72534958]
[1750066214697,1.6891206,107150.0,107140.0,1.72534959]
[1750066214915,1.6891206,107150.0,107140.0,1.70782431]
[1750066215432,1.6901206,107150.0,107140.0,1.70782431]
[1750066215847,1.6901206,107150.0,107140.0,1.72534958]
[1750066216060,1.6901206,107150.0,107140.0,1.70782431]
[1750066216468,1.6901206,107150.0,107140.0,1.72534964]
[1750066216673,1.6911206,107150.0,107140.0,1.72534964]
[1750066217240,1.6911206,107150.0,107140.0,1.70782431]
[1750066217457,1.6911206,107150.0,107140.0,1.72534964]
[1750066217787,2.12294908,107150.0,107140.0,1.72534959]
[1750066218188,2.12294908,107150.0,107140.0,1.70782431]
[1750066218431,2.12294908,107150.0,107140.0,1.72534973]
[1750066218602,2.12294908,107150.0,107140.0,1.72534972]
[1750066219007,2.12294908,107150.0,107140.0,1.70782431]
[1750066219374,2.12294908,107150.0,107140.0,1.72534973]
[1750066219880,2.12294908,107150.0,107140.0,1.72534975]
[1750066220706,2.12294908,107150.0,107140.0,1.72534976]
[1750066221346,2.12294908,107150.0,107140.0,1.72534974]
[1750066221586,2.12294908,107150.0,107140.0,1.72527879]
[1750066221799,2.12294908,107150.0,107140.0,1.72527877]
[1750066222237,2.12294908,107150.0,107140.0,1.70782431]
[1750066222472,2.12294908,107150.0,107140.0,1.72527879]
[1750066222699,2.12294908,107150.0,107140.0,1.72527878]
[1750066222933,2.12294908,107150.0,107140.0,1.70782431]
[1750066223635,2.12294908,107150.0,107140.0,1.72527875]
[1750066223838,2.12294908,107150.0,107140.0,1.72527872]
[1750066224050,2.12294908,107150.0,107140.0,1.70782431]
[1750066224301,1.6911206,107150.0,107140.0,1.70782431]
[1750066224530,1.6911206,107150.0,107140.0,1.72527863]
[1750066224770,2.12294908,107150.0,107140.0,1.72527863]
[1750066224982,1.6911206,107150.0,107140.0,1.70782431]
[1750066225200,1.4994406,107150.0,107140.0,1.7252786]
[1750066225415,1.6911206,107150.0,107140.0,1.70782431]
[1750066225836,1.4994406,107150.0,107140.0,1.72527858]
[1750066226099,1.6911206,107150.0,107140.0,1.72527857]
[1750066226303,2.12294908,107150.0,107140.0,1.72527857]
[1750066226512,2.12294908,107150.0,107140.0,1.7252786]
[1750066226714,1.93126908,107150.0,107140.0,1.72527862]
[1750066226927,1.25929212,107150.0,107140.0,1.72527863]
[1750066227130,2.12294908,107150.0,107140.0,1.70782431]
[1750066227632,1.10701212,107150.0,107140.0,1.70782431]
[1750066227851,1.6911206,107150.0,107140.0,1.70782431]
[1750066228092,1.25929212,107150.0,107140.0,1.70782431]
[1750066228304,1.5388406,107150.0,107140.0,1.80397353]
[1750066228511,1.5388406,107150.0,107140.0,1.70782431]
[1750066230216,1.5388406,107150.0,107140.0,1.86006431]
[1750066233103,1.97066908,107150.0,107140.0,1.70782431]
[1750066233323,1.5388406,107150.0,107140.0,1.70782431]
[1750066233532,1.97066908,107150.0,107140.0,1.70782431]
[1750066239598,1.70146908,107150.0,107140.0,1.70782431]
[1750066242136,1.70146908,107150.0,107140.0,1.86006431]
[1750066248027,1.70146908,107150.0,107140.0,1.8775662]
[1750066248910,1.70146908,107150.0,107140.0,1.70782431]
[1750066249108,1.70146908,107150.0,107140.0,1.69512625]
[1750066249594,1.72941911,107150.0,107140.0,1.67762431]
[1750066249803,1.72941911,107150.0,107140.0,1.66382675]
[1750066250043,1.79021911,107150.0,107140.0,1.66382692]
[1750066250246,1.79021911,107150.0,107140.0,1.63902431]
[1750066250592,1.75961911,107150.0,107140.0,1.63902431]
[1750066250797,1.91185911,107150.0,107140.0,1.63902431]
[1750066252415,1.91185911,107150.0,107140.0,1.65654953]
[1750066252877,1.88165911,107150.0,107140.0,1.65654953]
[1750066253085,1.88165911,107150.0,107140.0,1.63902431]
[1750066253286,1.88165911,107150.0,107140.0,1.65654953]
[1750066253900,1.88165911,107150.0,107140.0,1.63902431]
[1750066254315,1.88165911,107150.0,107140.0,1.65654952]
[1750066254521,1.88165911,107150.0,107140.0,1.63902431]
[1750066254940,1.88165911,107150.0,107140.0,1.6565495]
[1750066255144,1.88165911,107150.0,107140.0,1.65654951]
[1750066255350,1.88165911,107150.0,107140.0,1.63902431]
[1750066255744,1.88165911,107150.0,107140.0,1.65654949]
[1750066255883,1.88165911,107150.0,107140.0,1.6565495]
[1750066256092,1.88165911,107150.0,107140.0,1.63902431]
[1750066256538,1.88165911,107150.0,107140.0,1.6565495]
[1750066256971,1.88165911,107150.0,107140.0,1.63902431]
[1750066257176,1.88165911,107150.0,107140.0,1.6565495]
[1750066257831,1.88165911,107150.0,107140.0,1.63902431]
[1750066258032,1.88165911,107150.0,107140.0,1.6565495]
[1750066258486,1.88165911,107150.0,107140.0,1.63902431]
[1750066258712,1.88165911,107150.0,107140.0,1.6565495]
[1750066259069,1.88165911,107150.0,107140.0,1.63902431]
[1750066259274,1.88165911,107150.0,107140.0,1.6565495]
[1750066259712,1.88165911,107150.0,107140.0,1.63902431]
[1750066259919,1.88165911,107150.0,107140.0,1.6565495]
[1750066260279,1.88165911,107150.0,107140.0,1.63902431]
[1750066260543,1.88165911,107150.0,107140.0,1.6565495]
[1750066262620,1.88165911,107150.0,107140.0,1.63902431]
[1750066262753,1.88165911,107150.0,107140.0,1.6565495]
[1750066262959,1.88165911,107150.0,107140.0,1.63902431]
[1750066263553,1.88165911,107150.0,107140.0,1.6565495]
[1750066264500,1.88165911,107150.0,107140.0,1.65654949]
[1750066265154,1.88165911,107150.0,107140.0,1.63902431]
[1750066265577,1.88165911,107150.0,107140.0,1.65654949]
[1750066265803,1.88165911,107150.0,107140.0,1.63902431]
[1750066266045,1.88165911,107150.0,107140.0,1.65654949]
[1750066267906,1.88165911,107150.0,107140.0,1.63902431]
[1750066268119,1.88165911,107150.0,107140.0,1.65653525]
[1750066268327,1.88165911,107150.0,107140.0,1.63902431]
[1750066268544,1.88165911,107150.0,107140.0,1.65653525]
[1750066269004,1.88165911,107150.0,107140.0,1.63902431]
[1750066269217,1.88165911,107150.0,107140.0,1.65653525]
[1750066269866,1.88165911,107150.0,107140.0,1.63902431]
[1750066270069,1.88165911,107150.0,107140.0,1.65653525]
[1750066270305,1.88165911,107150.0,107140.0,1.63902431]
[1750066270943,1.88165911,107150.0,107140.0,1.65653525]
[1750066272085,1.88165911,107150.0,107140.0,1.63902431]
[1750066272296,1.88165911,107150.0,107140.0,1.65653525]
[1750066272713,1.88165911,107150.0,107140.0,1.65654949]
[1750066273557,1.88165911,107150.0,107140.0,1.63902431]
[1750066273778,1.88165911,107150.0,107140.0,1.65654949]
[1750066274402,1.88165911,107150.0,107140.0,1.63902431]
[1750066274645,1.88165911,107150.0,107140.0,1.65654949]
[1750066276171,1.01800215,107150.0,107140.0,1.65654949]
[1750066276397,1.88165911,107150.0,107140.0,1.65654949]
[1750066277093,1.88165911,107150.0,107140.0,1.63902431]
[1750066277318,1.88165911,107150.0,107140.0,1.65654949]
[1750066277568,1.01800215,107150.0,107140.0,1.6565495]
[1750066277794,1.91894938,107150.0,107140.0,1.65654949]
[1750066278019,1.91894938,107150.0,107140.0,1.6565495]
[1750066278442,1.91894938,107150.0,107140.0,1.65654949]
[1750066278657,1.91894938,107150.0,107140.0,1.63902431]
[1750066278874,1.91894938,107150.0,107140.0,1.65654955]
[1750066279103,1.91894938,107150.0,107140.0,1.65654956]
[1750066279560,1.90583116,107150.0,107140.0,1.63902431]
[1750066279786,1.90583116,107150.0,107140.0,1.65654956]
[1750066280473,1.90583116,107150.0,107140.0,1.63902431]
[1750066280703,1.90583116,107150.0,107140.0,1.65654956]
[1750066282654,1.90583116,107150.0,107140.0,1.65654957]
[1750066282874,1.90583116,107150.0,107140.0,1.63902431]
[1750066283318,1.90583116,107150.0,107140.0,1.65654956]
[1750066284580,1.90583116,107150.0,107140.0,1.63902431]
[1750066284804,1.90583116,107150.0,107140.0,1.65654955]
[1750066285492,1.90583116,107150.0,107140.0,1.63902431]
[1750066285699,1.90583116,107150.0,107140.0,1.65654955]
[1750066286346,1.90583116,107150.0,107140.0,1.63902431]
[1750066287000,1.90583116,107150.0,107140.0,1.65654955]
[1750066287213,1.90583116,107150.0,107140.0,1.63902431]
[1750066287427,1.90583116,107150.0,107140.0,1.65654955]
[1750066287852,1.90583116,107150.0,107140.0,1.63902431]
[1750066288318,1.90583116,107150.0,107140.0,1.65654955]
[1750066288985,1.90583116,107150.0,107140.0,1.63902431]
[1750066289301,1.90583116,107150.0,107140.0,1.65654955]
[1750066289536,1.90583116,107150.0,107140.0,1.63902431]
[1750066289756,1.90583116,107150.0,107140.0,1.65654955]
[1750066290395,1.90583116,107150.0,107140.0,1.63902431]
[1750066290605,1.90583116,107150.0,107140.0,1.65654955]
[1750066290846,1.90583116,107150.0,107140.0,1.63902431]
[1750066291287,1.90583116,107150.0,107140.0,1.65654955]
[1750066291533,1.90583116,107150.0,107140.0,1.63902431]
[1750066291981,1.90583116,107150.0,107140.0,1.65654955]
[1750066292406,1.90583116,107150.0,107140.0,1.63902431]
[1750066292616,1.90583116,107150.0,107140.0,1.65654955]
[1750066295240,1.90583116,107150.0,107140.0,1.63902431]
[1750066295453,1.90583116,107150.0,107140.0,1.65654955]
[1750066295941,1.90583116,107150.0,107140.0,1.65654954]
[1750066296158,1.90567116,107150.0,107140.0,1.65654954]
[1750066297498,1.90567116,107150.0,107140.0,1.63902431]
[1750066297715,1.90567116,107150.0,107140.0,1.65654955]
[1750066297930,1.90567116,107150.0,107140.0,1.63902431]
[1750066298147,1.90567116,107150.0,107140.0,1.65654955]
[1750066298365,1.90567116,107150.0,107140.0,1.63902431]
[1750066298573,1.90567116,107150.0,107140.0,1.65654955]
[1750066299438,2.40149964,107150.0,107140.0,1.65654955]
[1750066299667,2.4505841,107150.0,107140.0,1.65655079]
[1750066299888,2.45058408,107150.0,107140.0,1.65655079]
[1750066300108,2.4505841,107150.0,107140.0,1.65655103]
[1750066300326,2.4505841,107150.0,107140.0,1.65655098]
[1750066300550,2.4132937,107150.0,107140.0,1.63902431]
[1750066300768,2.41329368,107150.0,107140.0,1.63902431]
[1750066300989,2.40673371,107150.0,107140.0,1.65655123]
[1750066301207,2.40673371,107150.0,107140.0,1.63902431]
[1750066301415,2.44402805,107150.0,107140.0,1.65651581]
[1750066301625,2.44402805,107150.0,107140.0,1.63902431]
[1750066301836,2.44402805,107150.0,107140.0,1.65651581]
[1750066302554,2.44402805,107150.0,107140.0,1.63902431]
[1750066302904,2.44402805,107150.0,107140.0,1.65651581]
[1750066303126,2.44402805,107150.0,107140.0,1.65651584]
[1750066303373,2.44402805,107150.0,107140.0,1.65651585]
[1750066304189,2.44402805,107150.0,107140.0,1.63902431]
[1750066304406,2.44402805,107150.0,107140.0,1.65651585]
[1750066304827,2.44402805,107150.0,107140.0,1.63902431]
[1750066305238,2.44402805,107150.0,107140.0,1.65651585]
[1750066305444,2.44402805,107150.0,107140.0,1.65651595]
[1750066305650,2.44402805,107150.0,107140.0,1.63902431]
[1750066305854,2.44402805,107150.0,107140.0,1.65651607]
[1750066306475,2.44402805,107150.0,107140.0,1.63902431]
[1750066306882,2.44402805,107150.0,107140.0,1.65651607]
[1750066307511,2.45058794,107150.0,107140.0,1.65655151]
[1750066307713,2.45058809,107150.0,107140.0,1.63902431]
[1750066307973,2.45058891,107150.0,107140.0,1.63902431]
[1750066308194,2.44402805,107150.0,107140.0,1.63902431]
[1750066308428,2.45058883,107150.0,107140.0,1.63902431]
[1750066308625,2.45058847,107150.0,107140.0,1.63902431]
[1750066308832,2.45058801,107150.0,107140.0,1.65655151]
[1750066309037,2.44402805,107150.0,107140.0,1.65655151]
[1750066309243,2.45058798,107150.0,107140.0,1.63902431]
[1750066309454,2.45058799,107150.0,107140.0,1.63902431]
[1750066309628,2.45058798,107150.0,107140.0,1.63902431]
[1750066309878,2.45058798,107150.0,107140.0,1.65655151]
[1750066310243,2.44402805,107150.0,107140.0,1.63902431]
[1750066310453,2.44402805,107150.0,107140.0,1.65655151]
[1750066310673,2.45058802,107150.0,107140.0,1.65655151]
[1750066310901,2.44402805,107150.0,107140.0,1.65655151]
[1750066311106,2.46928797,107150.0,107140.0,1.65655151]
[1750066311337,2.45058797,107150.0,107140.0,1.65655151]
[1750066311582,2.44402805,107150.0,107140.0,1.65655151]
[1750066311811,2.44402805,107150.0,107140.0,1.65655132]
[1750066312071,2.44402805,107150.0,107140.0,1.65655125]
[1750066312296,2.29842797,107150.0,107140.0,1.65655125]
[1750066312497,2.20317445,107150.0,107140.0,1.65655125]
[1750066312708,2.39465445,107150.0,107140.0,1.63902431]
[1750066312918,2.39465433,107150.0,107140.0,1.65655078]
[1750066313124,2.39465433,107150.0,107140.0,1.63902431]
[1750066313343,2.38809453,107150.0,107140.0,1.65655078]
[1750066313549,2.19661453,107150.0,107140.0,1.65655078]
[1750066313750,2.38809453,107150.0,107140.0,1.65655078]
[1750066314200,2.39465433,107150.0,107140.0,1.63902431]
[1750066314402,2.39465433,107150.0,107140.0,1.65655078]
[1750066314598,2.38809453,107150.0,107140.0,1.63902431]
[1750066314856,2.39465433,107150.0,107140.0,1.65655078]
[1750066315251,2.38809453,107150.0,107140.0,1.65655078]
[1750066315453,2.39465433,107150.0,107140.0,1.65655078]
[1750066315693,2.38809453,107150.0,107140.0,1.63902431]
[1750066315815,2.39465433,107150.0,107140.0,1.63902431]
[1750066316242,2.38809453,107150.0,107140.0,1.65655078]
[1750066316502,2.39465433,107150.0,107140.0,1.65655078]
[1750066316715,2.38809453,107150.0,107140.0,1.65655078]
[1750066317156,2.39465434,107150.0,107140.0,1.65655078]
[1750066317395,2.38809453,107150.0,107140.0,1.65655078]
[1750066317831,2.39465435,107150.0,107140.0,1.63902431]
[1750066318042,2.38809453,107150.0,107140.0,1.63902431]
[1750066318250,2.39465434,107150.0,107140.0,1.65655078]
[1750066318474,2.38809453,107150.0,107140.0,1.63902431]
[1750066318935,2.39465435,107150.0,107140.0,1.63902431]
[1750066319148,2.38809453,107150.0,107140.0,1.63902431]
[1750066319775,2.3946546,107150.0,107140.0,1.63902431]
[1750066319998,2.38809453,107150.0,107140.0,1.63902431]
[1750066320206,2.38809453,107150.0,107140.0,1.65655081]
[1750066320414,2.38809453,107150.0,107140.0,1.63902431]
[1750066320622,2.39465353,107150.0,107140.0,1.63902431]
[1750066320831,2.38809453,107150.0,107140.0,1.63902431]
[1750066321039,2.39465366,107150.0,107140.0,1.63902431]
[1750066321269,2.39465369,107150.0,107140.0,1.63902431]
[1750066321481,2.39465369,107150.0,107140.0,1.65654629]
[1750066321697,2.45058721,107150.0,107140.0,1.65654629]
[1750066321908,2.44402805,107150.0,107140.0,1.65654629]
[1750066322132,2.45058721,107150.0,107140.0,1.65654629]
[1750066322349,2.4505872,107150.0,107140.0,1.63902431]
[1750066322588,2.44402805,107150.0,107140.0,1.63902431]
[1750066323018,2.45058721,107150.0,107140.0,1.63902431]
[1750066323236,2.44402805,107150.0,107140.0,1.65654629]
[1750066323470,2.45058743,107150.0,107140.0,1.65654629]
[1750066323689,2.44402805,107150.0,107140.0,1.65654629]
[1750066323924,2.45058779,107150.0,107140.0,1.65654629]
[1750066324140,2.44402805,107150.0,107140.0,1.63902431]
[1750066324345,2.45058786,107150.0,107140.0,1.65654629]
[1750066324558,2.45058785,107150.0,107140.0,1.65654629]
[1750066324781,2.45058786,107150.0,107140.0,1.65654629]
[1750066324992,2.45058786,107150.0,107140.0,1.63902431]
[1750066325220,2.45058786,107150.0,107140.0,1.65654629]
[1750066325431,2.44402805,107150.0,107140.0,1.65654629]
[1750066325855,2.45058784,107150.0,107140.0,1.63902431]
[1750066326068,2.44402805,107150.0,107140.0,1.65654646]
[1750066326279,2.45058764,107150.0,107140.0,1.65654652]
[1750066326514,2.45058759,107150.0,107140.0,1.63902431]
[1750066326721,2.45058759,107150.0,107140.0,1.65654652]
[1750066326722,2.45058762,107150.0,107140.0,1.65654652]
[1750066327373,2.45058761,107150.0,107140.0,1.63902431]
[1750066327600,2.44402805,107150.0,107140.0,1.63902431]
[1750066327838,2.45058761,107150.0,107140.0,1.65654652]
[1750066328053,2.45058762,107150.0,107140.0,1.65654652]
[1750066328484,2.45058762,107150.0,107140.0,1.63902431]
[1750066328698,2.44402805,107150.0,107140.0,1.65654652]
[1750066328939,1.14854261,107150.0,107140.0,1.63902431]
[1750066329161,2.4505876,107150.0,107140.0,1.63902431]
[1750066329381,2.41329327,107150.0,107140.0,1.65654652]
[1750066329601,2.41329326,107150.0,107140.0,1.65654652]
[1750066329822,2.41329326,107150.0,107140.0,1.63902431]
[1750066330043,2.41329327,107150.0,107140.0,1.65654652]
[1750066330257,2.41329331,107150.0,107140.0,1.65654652]
[1750066330575,2.40673371,107150.0,107140.0,1.65654652]
[1750066330786,2.41329331,107150.0,107140.0,1.63902431]
[1750066331001,2.413295,107150.0,107140.0,1.65655104]
[1750066331571,2.40673371,107150.0,107140.0,1.63902431]
[1750066331787,2.413295,107150.0,107140.0,1.65655104]
[1750066332188,2.40673371,107150.0,107140.0,1.65655104]
[1750066332422,2.41329499,107150.0,107140.0,1.65655104]
[1750066332651,2.40673371,107150.0,107140.0,1.65655104]
[1750066332870,2.40673371,107150.0,107140.0,1.63902431]
[1750066333090,2.40669371,107150.0,107140.0,1.63902431]
[1750066333338,2.41325499,107150.0,107140.0,1.63902431]
[1750066333575,2.41325499,107150.0,107140.0,1.65655104]
[1750066333783,2.41325499,107150.0,107140.0,1.63902431]
[1750066334001,2.41325499,107150.0,107140.0,1.65655104]
[1750066334675,2.40669371,107150.0,107140.0,1.65655104]
[1750066334894,2.41325407,107150.0,107140.0,1.65655104]
[1750066335105,2.40669371,107150.0,107140.0,1.65655104]
[1750066335316,2.41325387,107150.0,107140.0,1.65655104]
[1750066335555,2.41325383,107150.0,107140.0,1.63902431]
[1750066335778,2.40669371,107150.0,107140.0,1.65655104]
[1750066335991,2.68241385,107150.0,107140.0,1.65655104]
[1750066336177,2.67585371,107150.0,107140.0,1.65655104]
[1750066336401,2.68241392,107150.0,107140.0,1.63902431]
[1750066336614,2.68241392,107150.0,107140.0,1.65655104]
[1750066336814,2.67585371,107150.0,107140.0,1.65655104]
[1750066337254,2.67585371,107150.0,107140.0,1.63902431]
[1750066337474,2.67585371,107150.0,107140.0,1.65655104]
[1750066337699,2.68241385,107150.0,107140.0,1.65655104]
[1750066338161,2.67585371,107150.0,107140.0,1.65655104]
[1750066338365,2.67585371,107150.0,107140.0,1.63902431]
[1750066338579,2.68241373,107150.0,107140.0,1.65655104]
[1750066338792,2.68241373,107150.0,107140.0,1.63902431]
[1750066339021,2.68241373,107150.0,107140.0,1.65655104]
[1750066340093,2.53029373,107150.0,107140.0,1.65655104]
[1750066340307,2.67585371,107150.0,107140.0,1.65655075]
[1750066340544,2.68241376,107150.0,107140.0,1.63902431]
[1750066340793,2.68241374,107150.0,107140.0,1.65655075]
[1750066341008,2.68241374,107150.0,107140.0,1.65655087]
[1750066341433,2.67585371,107150.0,107140.0,1.65655087]
[1750066341871,2.68241374,107150.0,107140.0,1.63902431]
[1750066342348,2.68241374,107150.0,107140.0,1.6565509]
[1750066342550,2.6824138,107150.0,107140.0,1.6565509]
[1750066342761,2.6823738,107150.0,107140.0,1.6565509]
[1750066342974,2.49097381,107150.0,107140.0,1.6565509]
[1750066343190,2.20275999,107150.0,107140.0,1.71965042]
[1750066343409,2.17480752,107150.0,107140.0,1.71965042]
[1750066343628,2.17480752,107150.0,107140.0,1.71964955]
[1750066343841,2.17480752,107150.0,107140.0,1.70212431]
[1750066344054,2.17480752,107150.0,107140.0,1.71964953]
[1750066344268,2.17480752,107150.0,107140.0,1.70212431]
[1750066344723,2.17480752,107150.0,107140.0,1.71964968]
[1750066344938,1.98340752,107150.0,107140.0,1.71964966]
[1750066345159,2.17480752,107150.0,107140.0,1.71964966]
[1750066345561,2.17480752,107150.0,107140.0,1.70212431]
[1750066345798,2.17480752,107150.0,107140.0,1.71964964]
[1750066346271,2.17480752,107150.0,107140.0,1.71964933]
[1750066346473,2.13749191,107150.0,107140.0,1.70212431]
[1750066346709,1.94609191,107150.0,107140.0,1.70212431]
[1750066346928,2.13749191,107150.0,107140.0,1.70212431]
[1750066347139,2.13749191,107150.0,107140.0,1.71964871]
[1750066347370,2.13749191,107150.0,107140.0,1.70212431]
[1750066347572,2.13649191,107150.0,107140.0,1.70212431]
[1750066347790,2.13649191,107150.0,107140.0,1.71964874]
[1750066348011,1.94509191,107150.0,107140.0,1.71964874]
[1750066348229,2.13649191,107150.0,107140.0,1.71964875]
[1750066348439,2.10751086,107150.0,107140.0,1.72064838]
[1750066348654,2.10751086,107150.0,107140.0,1.70312431]
[1750066349090,2.10751086,107150.0,107140.0,1.72064824]
[1750066349306,2.10751086,107150.0,107140.0,1.72064842]
[1750066349724,2.10751086,107150.0,107140.0,1.70312431]
[1750066349929,2.10751086,107150.0,107140.0,1.72059951]
[1750066350148,2.10751086,107150.0,107140.0,1.70312431]
[1750066350271,2.10751086,107150.0,107140.0,1.72059951]
[1750066350500,2.10751086,107150.0,107140.0,1.7206485]
[1750066350707,2.10751086,107150.0,107140.0,1.70312431]
[1750066350929,2.10751086,107150.0,107140.0,1.7206485]
[1750066351804,2.10751086,107150.0,107140.0,1.70312431]
[1750066352034,2.10751086,107150.0,107140.0,1.7206485]
[1750066352182,2.10751086,107150.0,107140.0,1.70312431]
[1750066352525,2.10751086,107150.0,107140.0,1.72064874]
[1750066353243,2.10751086,107150.0,107140.0,1.70312431]
[1750066353666,2.10751086,107150.0,107140.0,1.72064874]
[1750066354099,2.10751086,107150.0,107140.0,1.70312431]
[1750066354520,2.10751086,107150.0,107140.0,1.72064873]
[1750066354731,2.10751086,107150.0,107140.0,1.70312431]
[1750066354945,2.10751086,107150.0,107140.0,1.72064873]
[1750066355365,2.10751086,107150.0,107140.0,1.70312431]
[1750066361592,2.10751086,107150.0,107140.0,1.64002431]
[1750066364259,1.83835086,107150.0,107140.0,1.64002431]
[1750066365539,1.86633191,107150.0,107140.0,1.64002431]
[1750066366175,1.83835086,107150.0,107140.0,1.64002431]
[1750066366443,2.29816039,107150.0,107140.0,1.64002431]
[1750066366656,2.34782019,107150.0,107140.0,1.27782896]
[1750066367075,2.38235967,107150.0,107140.0,1.27782896]
[1750066367293,2.37580124,107150.0,107140.0,1.27782896]
[1750066367724,2.38235965,107150.0,107140.0,1.27782896]
[1750066368367,2.37580124,107150.0,107140.0,1.27782896]
[1750066368577,2.38235965,107150.0,107140.0,1.27782896]
[1750066369219,2.37580124,107150.0,107140.0,1.27782896]
[1750066369438,2.38231965,107150.0,107140.0,1.27782896]
[1750066369872,2.37576124,107150.0,107140.0,1.27782896]
[1750066370072,2.38231965,107150.0,107140.0,1.27782896]
[1750066370692,2.38231965,107150.0,107140.0,1.29535539]
[1750066370917,2.38231964,107150.0,107140.0,1.29035539]
[1750066371254,2.38231965,107150.0,107140.0,1.27282896]
[1750066371463,2.37576124,107150.0,107140.0,1.27282896]
[1750066371688,2.37576124,107150.0,107140.0,1.29031228]
[1750066373282,2.37576124,107150.0,107140.0,1.27282896]
[1750066373502,2.34778019,107150.0,107140.0,1.29031197]
[1750066373713,2.34778019,107150.0,107140.0,1.27282896]
[1750066373918,2.34778019,107150.0,107140.0,1.29031197]
[1750066374327,2.34858019,107150.0,107140.0,1.29031197]
[1750066374523,2.34858019,107150.0,107140.0,1.27282896]
[1750066374739,2.34858019,107150.0,107140.0,1.29031186]
[1750066374946,2.34858019,107150.0,107140.0,1.27282896]
[1750066375157,2.34858019,107150.0,107140.0,1.29031182]
[1750066375361,2.34858019,107150.0,107140.0,1.2903117]
[1750066375567,1.69449171,107150.0,107140.0,1.2903117]
[1750066375769,1.85365171,107150.0,107140.0,1.2903115]
[1750066375976,1.85365171,107150.0,107140.0,1.27282896]
[1750066376389,1.85365171,107150.0,107140.0,1.29031148]
[1750066376590,1.69027276,107150.0,107140.0,1.27282896]
[1750066376824,1.88163276,107150.0,107140.0,1.29031148]
[1750066377250,1.88163276,107150.0,107140.0,1.27282896]
[1750066377460,1.88163276,107150.0,107140.0,1.29031148]
[1750066377684,1.88163276,107150.0,107140.0,1.27282896]
[1750066378302,1.85928984,107150.0,107140.0,1.29031148]
[1750066378515,1.83130879,107150.0,107140.0,1.29031148]
[1750066378716,1.85366358,107150.0,107140.0,1.27282896]
[1750066378928,1.85366358,107150.0,107140.0,1.29031148]
[1750066378929,1.68704273,107150.0,107140.0,1.29031148]
[1750066379134,1.86706622,107150.0,107140.0,1.35301125]
[1750066379342,1.81676794,107150.0,107140.0,1.3530108]
[1750066379549,1.81676794,107150.0,107140.0,1.33552896]
[1750066379758,1.81676794,107150.0,107140.0,1.3530541]
[1750066379932,1.83912238,107150.0,107140.0,1.33552896]
[1750066380118,1.86706543,107150.0,107140.0,1.33552896]
[1750066380312,1.81676794,107150.0,107140.0,1.3530541]
[1750066380532,1.83911841,107150.0,107140.0,1.35305386]
[1750066380728,1.83911841,107150.0,107140.0,1.33552896]
[1750066380928,1.8670565,107150.0,107140.0,1.32085383]
[1750066381554,1.8670565,107150.0,107140.0,1.30332896]
[1750066382223,1.8670565,107150.0,107140.0,1.32085383]
[1750066382448,1.8670565,107150.0,107140.0,1.30332896]
[1750066382867,1.8670565,107150.0,107140.0,1.32085424]
[1750066383020,1.8670565,107150.0,107140.0,1.32085425]
[1750066383442,1.8670565,107150.0,107140.0,1.30332896]
[1750066383680,1.8670565,107150.0,107140.0,1.27282896]
[1750066383884,1.8670565,107150.0,107140.0,1.29035426]
[1750066384585,1.8670565,107150.0,107140.0,1.27282896]
[1750066384810,1.8670565,107150.0,107140.0,1.29035427]
[1750066385957,1.8995565,107150.0,107140.0,1.27282896]
[1750066386175,1.8995565,107150.0,107140.0,1.29035427]
[1750066387703,1.9311565,107150.0,107140.0,1.29035427]
[1750066388210,1.9311565,107150.0,107140.0,1.27282896]
[1750066388439,1.9311565,107150.0,107140.0,1.29035427]
[1750066388685,1.9311565,107150.0,107140.0,1.27282896]
[1750066388918,2.36298498,107150.0,107140.0,1.29035427]
[1750066389162,2.41484144,107150.0,107140.0,1.29035454]
[1750066389386,2.41484144,107150.0,107140.0,1.2903549]
[1750066389623,2.41484144,107150.0,107140.0,1.29035495]
[1750066390309,2.41484144,107150.0,107140.0,1.27282896]
[1750066390521,2.41484144,107150.0,107140.0,1.29035496]
[1750066390747,2.41484144,107150.0,107140.0,1.290355]
[1750066390963,2.38690335,107150.0,107140.0,1.27282896]
[1750066391188,2.38690335,107150.0,107140.0,1.29035523]
[1750066391407,2.38690335,107150.0,107140.0,1.2903553]
[1750066391629,2.47445753,107150.0,107140.0,1.29035534]
[1750066391849,2.46790143,107150.0,107140.0,1.29035568]
[1750066392143,2.449393,107150.0,107140.0,1.29035574]
[1750066392362,2.44283687,107150.0,107140.0,0.92816042]
[1750066392583,2.3934589,107150.0,107140.0,0.91063361]
[1750066392802,2.38690335,107150.0,107140.0,0.92816207]
[1750066393025,2.39345877,107150.0,107140.0,0.91063361]
[1750066393251,2.39345883,107150.0,107140.0,0.91063361]
[1750066393507,2.38690335,107150.0,107140.0,0.92816223]
[1750066393741,2.39345884,107150.0,107140.0,0.91063361]
[1750066393965,2.38690335,107150.0,107140.0,0.92816223]
[1750066394182,2.3944589,107150.0,107140.0,0.92716223]
[1750066394410,2.3954589,107150.0,107140.0,0.92716223]
[1750066394624,2.3954589,107150.0,107140.0,0.90963361]
[1750066394839,2.3954589,107150.0,107140.0,0.92716223]
[1750066394840,2.38890335,107150.0,107140.0,0.92716223]